[Event "*** Titled Tuesday Blitz"]
[Site "Chess.com"]
[Date "2019.01.01"]
[Round "7"]
[White "gmjlh"]
[Black "Arman_Hakemi"]
[Result "1-0"]
[WhiteElo "2645"]
[BlackElo "2471"]
[TimeControl "180+2"]
[EndTime "14:42:01 PST"]
[Termination "gmjlh won on time"]

1. c4 {[%clk 0:03:01.9]} 1... e5 {[%clk 0:02:58.5]} 2. g3 {[%clk 0:03:02.5]}
2... Nf6 {[%clk 0:02:59]} 3. Nc3 {[%clk 0:03:03]} 3... Bb4 {[%clk 0:02:59.1]} 4.
e4 {[%clk 0:03:03.6]} 4... Bxc3 {[%clk 0:02:55.1]} 5. dxc3 {[%clk 0:03:02.1]}
5... O-O {[%clk 0:02:56.1]} 6. f3 {[%clk 0:03:03.4]} 6... d6 {[%clk 0:02:56.5]}
7. Nh3 {[%clk 0:03:02]} 7... Nbd7 {[%clk 0:02:57]} 8. Nf2 {[%clk 0:03:00.8]}
8... Nc5 {[%clk 0:02:57.9]} 9. g4 {[%clk 0:02:58]} 9... a5 {[%clk 0:02:51.6]}
10. h4 {[%clk 0:02:56.2]} 10... b6 {[%clk 0:02:50.8]} 11. h5 {[%clk 0:02:55]}
11... Nfd7 {[%clk 0:02:49.7]} 12. b3 {[%clk 0:02:28.5]} 12... Ne6 {[%clk
0:02:45.5]} 13. Be3 {[%clk 0:02:29.5]} 13... Nf4 {[%clk 0:02:38]} 14. Qd2 {[%clk
0:02:13.9]} 14... Qf6 {[%clk 0:02:36.5]} 15. Nh3 {[%clk 0:02:03.3]} 15... g5
{[%clk 0:02:26.8]} 16. h6 {[%clk 0:01:38.5]} 16... Nc5 {[%clk 0:02:14.5]} 17.
Nxf4 {[%clk 0:01:36.3]} 17... gxf4 {[%clk 0:02:13.9]} 18. Bf2 {[%clk 0:01:31.5]}
18... Ne6 {[%clk 0:02:09.9]} 19. Rh5 {[%clk 0:01:29.4]} 19... Qg6 {[%clk
0:02:08.4]} 20. O-O-O {[%clk 0:01:21.7]} 20... Ng5 {[%clk 0:01:53]} 21. Be2
{[%clk 0:01:15.2]} 21... Be6 {[%clk 0:01:52.8]} 22. Kb2 {[%clk 0:01:12.5]} 22...
f6 {[%clk 0:01:53.5]} 23. Bh4 {[%clk 0:01:01.6]} 23... Kh8 {[%clk 0:01:54.6]}
24. a3 {[%clk 0:00:45.9]} 24... Qg8 {[%clk 0:01:49.8]} 25. a4 {[%clk 0:00:40.4]}
25... Bf7 {[%clk 0:01:46.3]} 26. Bxg5 {[%clk 0:00:35.3]} 26... Bxh5 {[%clk
0:01:45.2]} 27. Bh4 {[%clk 0:00:35.4]} 27... Bg6 {[%clk 0:01:44.1]} 28. Rh1
{[%clk 0:00:36.3]} 28... Qe6 {[%clk 0:01:43.5]} 29. Qd5 {[%clk 0:00:33.9]} 29...
Qxd5 {[%clk 0:01:44.5]} 30. cxd5 {[%clk 0:00:34.9]} 30... Kg8 {[%clk 0:01:44.2]}
31. Bb5 {[%clk 0:00:32.6]} 31... Kf7 {[%clk 0:01:45]} 32. Bd7 {[%clk 0:00:29]}
32... Ke7 {[%clk 0:01:45.5]} 33. Be6 {[%clk 0:00:27.9]} 33... Be8 {[%clk
0:01:43.1]} 34. g5 {[%clk 0:00:27]} 34... Bg6 {[%clk 0:01:07.6]} 35. Rg1 {[%clk
0:00:24.7]} 35... fxg5 {[%clk 0:01:06.1]} 36. Bxg5+ {[%clk 0:00:21.6]} 36... Ke8
{[%clk 0:01:06.8]} 37. Bh4 {[%clk 0:00:13.3]} 37... Rd8 {[%clk 0:00:57.5]} 38.
Bxd8 {[%clk 0:00:03.5]} 38... Kxd8 {[%clk 0:00:58.7]} 39. Bf5 {[%clk 0:00:02.4]}
39... Bxf5 {[%clk 0:00:42.2]} 40. exf5 {[%clk 0:00:04.3]} 40... Ke7 {[%clk
0:00:12.8]} 41. Rg5 {[%clk 0:00:04.6]} 41... Rf7 {[%clk 0:00:12.6]} 42. Kc2
{[%clk 0:00:05.1]} 42... Kf6 {[%clk 0:00:14]} 43. Rg8 {[%clk 0:00:06.1]} 43...
Kxf5 {[%clk 0:00:14.9]} 44. Kd3 {[%clk 0:00:07.5]} 44... Rf6 {[%clk 0:00:12.2]}
45. Rg7 {[%clk 0:00:03.9]} 45... Rxh6 {[%clk 0:00:13.2]} 46. Rf7+ {[%clk
0:00:04.5]} 46... Kg5 {[%clk 0:00:09.6]} 47. Rxc7 {[%clk 0:00:05.7]} 47... Kh4
{[%clk 0:00:04.8]} 48. Rg7 {[%clk 0:00:05.7]} 48... Kh3 {[%clk 0:00:04.1]} 49.
Ke4 {[%clk 0:00:06.7]} 49... Kh2 {[%clk 0:00:05.4]} 50. b4 {[%clk 0:00:07.9]}
50... axb4 {[%clk 0:00:05.4]} 51. cxb4 {[%clk 0:00:09.8]} 51... Rh3 {[%clk
0:00:06.2]} 52. a5 {[%clk 0:00:10.6]} 52... bxa5 {[%clk 0:00:06.9]} 53. bxa5
{[%clk 0:00:12.5]} 53... h5 {[%clk 0:00:08.8]} 54. a6 {[%clk 0:00:13.6]} 54...
Rg3 {[%clk 0:00:08.8]} 55. a7 {[%clk 0:00:07.6]} 55... Rxg7 {[%clk 0:00:07.7]}
56. a8=Q {[%clk 0:00:08.9]} 56... h4 {[%clk 0:00:09.2]} 57. Qh8 {[%clk 0:00:09]}
57... Rg3 {[%clk 0:00:09.7]} 58. Qxh4+ {[%clk 0:00:09.8]} 58... Kg2 {[%clk
0:00:11.2]} 59. Qh5 {[%clk 0:00:10.1]} 59... Kf2 {[%clk 0:00:12.1]} 60. Qh2+
{[%clk 0:00:11]} 60... Rg2 {[%clk 0:00:09.6]} 61. Qh6 {[%clk 0:00:11.8]} 61...
Rg3 {[%clk 0:00:10.9]} 62. Qxd6 {[%clk 0:00:11.2]} 62... Rxf3 {[%clk 0:00:12.4]}
63. Kxe5 {[%clk 0:00:12.6]} 63... Kg3 {[%clk 0:00:08.4]} 64. Qg6+ {[%clk
0:00:13.3]} 64... Kf2 {[%clk 0:00:09.6]} 65. d6 {[%clk 0:00:14.5]} 65... Re3+
{[%clk 0:00:09.9]} 66. Kxf4 {[%clk 0:00:15.6]} 66... Rf3+ {[%clk 0:00:11.3]} 67.
Ke5 {[%clk 0:00:17]} 67... Re3+ {[%clk 0:00:12.6]} 68. Qe4 {[%clk 0:00:18.1]}
68... Rxe4+ {[%clk 0:00:13.9]} 69. Kxe4 {[%clk 0:00:20]} 1-0

[Event "*** Titled Tuesday Blitz"]
[Site "Chess.com"]
[Date "2019.01.01"]
[Round "7"]
[White "Peroncio"]
[Black "Keranke"]
[Result "1-0"]
[WhiteElo "2648"]
[BlackElo "2745"]
[TimeControl "180+2"]
[EndTime "14:42:27 PST"]
[Termination "Peroncio won by resignation"]

1. e4 {[%clk 0:03:01.9]} 1... g6 {[%clk 0:02:59.1]} 2. d4 {[%clk 0:03:02.8]}
2... Bg7 {[%clk 0:03:01]} 3. Nf3 {[%clk 0:03:04.4]} 3... d6 {[%clk 0:03:02.9]}
4. c3 {[%clk 0:03:05.1]} 4... Nf6 {[%clk 0:03:04.2]} 5. Bd3 {[%clk 0:03:06.6]}
5... O-O {[%clk 0:03:05.8]} 6. O-O {[%clk 0:03:08]} 6... Nbd7 {[%clk 0:03:07.4]}
7. h3 {[%clk 0:03:08.9]} 7... e5 {[%clk 0:03:08.9]} 8. Re1 {[%clk 0:03:08.1]}
8... Re8 {[%clk 0:03:07.4]} 9. Be3 {[%clk 0:03:03.5]} 9... d5 {[%clk 0:03:05.3]}
10. dxe5 {[%clk 0:03:00.5]} 10... dxe4 {[%clk 0:02:49.5]} 11. exf6 {[%clk
0:02:58.5]} 11... Nxf6 {[%clk 0:02:51.4]} 12. Be2 {[%clk 0:02:50.2]} 12... exf3
{[%clk 0:02:47.6]} 13. Bxf3 {[%clk 0:02:52.1]} 13... c6 {[%clk 0:02:21.3]} 14.
Nd2 {[%clk 0:02:09.4]} 14... Be6 {[%clk 0:02:20]} 15. Nb3 {[%clk 0:02:10.4]}
15... Nd5 {[%clk 0:02:19.4]} 16. Bd4 {[%clk 0:02:09.2]} 16... Qg5 {[%clk
0:02:12.1]} 17. Bxg7 {[%clk 0:02:02.9]} 17... Kxg7 {[%clk 0:02:14]} 18. Qd4+
{[%clk 0:02:04.1]} 18... Kg8 {[%clk 0:02:14.7]} 19. Re5 {[%clk 0:01:53.6]} 19...
Qh6 {[%clk 0:01:57.1]} 20. Nc5 {[%clk 0:01:43.3]} 20... Nf4 {[%clk 0:01:55.4]}
21. Qe3 {[%clk 0:01:20.7]} 21... Rab8 {[%clk 0:01:23.8]} 22. Bg4 {[%clk
0:01:03.8]} 22... Kg7 {[%clk 0:01:15.4]} 23. Bxe6 {[%clk 0:00:56.1]} 23... Nxe6
{[%clk 0:01:10.7]} 24. Nxe6+ {[%clk 0:00:52.9]} 24... fxe6 {[%clk 0:01:08.6]}
25. Rxe6 {[%clk 0:00:44.2]} 25... Qxe3 {[%clk 0:01:09.3]} 26. Rxe3 {[%clk
0:00:46.1]} 26... Rxe3 {[%clk 0:01:10.3]} 27. fxe3 {[%clk 0:00:47.5]} 27... Rd8
{[%clk 0:01:12.2]} 28. Rf1 {[%clk 0:00:47.5]} 28... Rd2 {[%clk 0:01:06.9]} 29.
Rf2 {[%clk 0:00:47.8]} 29... Rd1+ {[%clk 0:01:08.4]} 30. Kh2 {[%clk 0:00:47.9]}
30... Re1 {[%clk 0:01:09.6]} 31. Rd2 {[%clk 0:00:48.1]} 31... Kf6 {[%clk
0:01:03.5]} 32. Rd7 {[%clk 0:00:47.5]} 32... b5 {[%clk 0:01:03.5]} 33. Rxa7
{[%clk 0:00:45.1]} 33... Rxe3 {[%clk 0:01:02.4]} 34. Rc7 {[%clk 0:00:44.1]}
34... Re6 {[%clk 0:01:02.8]} 35. Rxh7 {[%clk 0:00:44.5]} 35... Re2 {[%clk
0:01:03.9]} 36. Rc7 {[%clk 0:00:42.8]} 36... Rxb2 {[%clk 0:01:04.8]} 37. Rxc6+
{[%clk 0:00:44.1]} 37... Kg5 {[%clk 0:01:03.8]} 38. Rc5+ {[%clk 0:00:43.6]}
38... Kh4 {[%clk 0:01:00]} 39. a4 {[%clk 0:00:42.8]} 39... bxa4 {[%clk
0:00:59.2]} 40. Rc4+ {[%clk 0:00:43.8]} 40... Kh5 {[%clk 0:01:00.3]} 41. Rxa4
{[%clk 0:00:45.7]} 41... Rc2 {[%clk 0:01:02.2]} 42. Rc4 {[%clk 0:00:44.7]} 42...
g5 {[%clk 0:01:01.1]} 43. Rc8 {[%clk 0:00:43]} 43... Rd2 {[%clk 0:00:57.5]} 44.
c4 {[%clk 0:00:43.8]} 44... Rc2 {[%clk 0:00:55.4]} 45. c5 {[%clk 0:00:44.5]}
45... Kg6 {[%clk 0:00:56.3]} 46. c6 {[%clk 0:00:44.7]} 46... Kg7 {[%clk
0:00:57.4]} 47. Kg3 {[%clk 0:00:43.9]} 47... Rc3+ {[%clk 0:00:56.1]} 48. Kg4
{[%clk 0:00:43.3]} 48... Kg6 {[%clk 0:00:55.5]} 49. Rg8+ {[%clk 0:00:43]} 49...
Kh6 {[%clk 0:00:55.9]} 50. Rc8 {[%clk 0:00:41.2]} 50... Kg6 {[%clk 0:00:56.9]}
51. c7 {[%clk 0:00:30]} 51... Rc4+ {[%clk 0:00:57.3]} 52. Kf3 {[%clk 0:00:31]}
52... Kg7 {[%clk 0:00:58.3]} 53. Ke3 {[%clk 0:00:31.4]} 53... Rc1 {[%clk
0:00:57.3]} 54. Ke4 {[%clk 0:00:32.6]} 54... Rc2 {[%clk 0:00:54.4]} 55. Kf5
{[%clk 0:00:32.7]} 55... Rc5+ {[%clk 0:00:55.5]} 56. Kg4 {[%clk 0:00:32.6]}
56... Kh7 {[%clk 0:00:56.8]} 57. Kh5 {[%clk 0:00:32.6]} 57... Kg7 {[%clk
0:00:57.8]} 58. g4 {[%clk 0:00:31.2]} 58... Kh7 {[%clk 0:00:56.1]} 59. Rd8
{[%clk 0:00:27.9]} 59... Rxc7 {[%clk 0:00:56.9]} 60. Kxg5 {[%clk 0:00:28.6]}
60... Ra7 {[%clk 0:00:58.6]} 61. Rd5 {[%clk 0:00:27.7]} 61... Ra3 {[%clk
0:00:58.8]} 62. h4 {[%clk 0:00:28.5]} 62... Ra7 {[%clk 0:01:00.1]} 63. Kh5
{[%clk 0:00:29.7]} 63... Rg7 {[%clk 0:00:59.8]} 64. g5 {[%clk 0:00:30.6]} 64...
Ra7 {[%clk 0:01:00.3]} 65. Rd4 {[%clk 0:00:31.9]} 65... Rb7 {[%clk 0:01:01.4]}
66. Kg4 {[%clk 0:00:32.4]} 66... Rb1 {[%clk 0:01:01.3]} 67. h5 {[%clk
0:00:31.9]} 67... Rg1+ {[%clk 0:01:01.8]} 68. Kf5 {[%clk 0:00:32.5]} 68... Rf1+
{[%clk 0:01:03.4]} 69. Rf4 {[%clk 0:00:33.3]} 69... Rh1 {[%clk 0:01:00.9]} 70.
h6 {[%clk 0:00:25.6]} 70... Ra1 {[%clk 0:01:01.8]} 71. Kg4 {[%clk 0:00:25.5]}
71... Rg1+ {[%clk 0:00:57.6]} 72. Kh5 {[%clk 0:00:25.5]} 72... Rh1+ {[%clk
0:00:58.1]} 73. Rh4 {[%clk 0:00:26.2]} 73... Rg1 {[%clk 0:00:59.3]} 74. Rh3
{[%clk 0:00:27.3]} 74... Rg2 {[%clk 0:00:58.1]} 75. Ra3 {[%clk 0:00:28.2]} 75...
Rh2+ {[%clk 0:00:58.8]} 76. Kg4 {[%clk 0:00:29.8]} 76... Rg2+ {[%clk 0:00:59.1]}
77. Kh4 {[%clk 0:00:30.5]} 77... Rh2+ {[%clk 0:00:58.6]} 78. Kg3 {[%clk
0:00:31.5]} 78... Rh1 {[%clk 0:00:51.7]} 79. Ra7+ {[%clk 0:00:32.8]} 79... Kg8
{[%clk 0:00:48.8]} 80. Kg4 {[%clk 0:00:33.4]} 80... Rb1 {[%clk 0:00:48.7]} 81.
g6 {[%clk 0:00:33.3]} 1-0

[Event "*** Titled Tuesday Blitz"]
[Site "Chess.com"]
[Date "2019.01.01"]
[Round "7"]
[White "Ali_rastbod"]
[Black "FelixBlohberger"]
[Result "1-0"]
[WhiteElo "2596"]
[BlackElo "2578"]
[TimeControl "180+2"]
[EndTime "14:47:07 PST"]
[Termination "Ali_rastbod won on time"]

1. c4 {[%clk 0:03:01.2]} 1... Nf6 {[%clk 0:02:59.1]} 2. Nc3 {[%clk 0:03:02.6]}
2... g6 {[%clk 0:02:54.5]} 3. g3 {[%clk 0:03:03.4]} 3... Bg7 {[%clk 0:02:52.4]}
4. Bg2 {[%clk 0:03:04.4]} 4... O-O {[%clk 0:02:53]} 5. Nf3 {[%clk 0:03:03.6]}
5... Nc6 {[%clk 0:02:52.7]} 6. d4 {[%clk 0:03:02.6]} 6... d5 {[%clk 0:02:51.2]}
7. cxd5 {[%clk 0:02:33.4]} 7... Nxd5 {[%clk 0:02:53]} 8. O-O {[%clk 0:02:26.3]}
8... Bf5 {[%clk 0:02:52.7]} 9. Nh4 {[%clk 0:02:11.9]} 9... Be6 {[%clk
0:02:32.5]} 10. e4 {[%clk 0:02:11.6]} 10... Nxc3 {[%clk 0:02:32]} 11. bxc3
{[%clk 0:02:13.2]} 11... Na5 {[%clk 0:02:32.1]} 12. d5 {[%clk 0:01:58.8]} 12...
Bd7 {[%clk 0:02:29.9]} 13. Be3 {[%clk 0:01:56.5]} 13... Bxc3 {[%clk 0:02:23.9]}
14. Rc1 {[%clk 0:01:55.9]} 14... Bg7 {[%clk 0:02:19]} 15. Bd2 {[%clk 0:01:18.7]}
15... b6 {[%clk 0:02:16.1]} 16. Bxa5 {[%clk 0:01:17.7]} 16... bxa5 {[%clk
0:02:18]} 17. Qd2 {[%clk 0:01:14.8]} 17... Rc8 {[%clk 0:01:59.3]} 18. Qxa5
{[%clk 0:01:13]} 18... c6 {[%clk 0:01:56.6]} 19. Qxa7 {[%clk 0:01:12.4]} 19...
Ra8 {[%clk 0:01:50.9]} 20. Qb7 {[%clk 0:01:02.4]} 20... cxd5 {[%clk 0:01:49.7]}
21. Qxd5 {[%clk 0:00:50.3]} 21... Be6 {[%clk 0:01:50]} 22. Qxd8 {[%clk 0:00:51]}
22... Rfxd8 {[%clk 0:01:51.9]} 23. Rcd1 {[%clk 0:00:51.1]} 23... Bxa2 {[%clk
0:01:29.6]} 24. Nf3 {[%clk 0:00:46.2]} 24... Bc4 {[%clk 0:01:25.6]} 25. Rfe1
{[%clk 0:00:45.9]} 25... h6 {[%clk 0:01:16.7]} 26. h3 {[%clk 0:00:46.8]} 26...
g5 {[%clk 0:01:13.8]} 27. Bf1 {[%clk 0:00:45.4]} 27... Be6 {[%clk 0:01:09.7]}
28. Kg2 {[%clk 0:00:38]} 28... Bb3 {[%clk 0:00:54.9]} 29. Rc1 {[%clk 0:00:34.6]}
29... Rac8 {[%clk 0:00:51.6]} 30. Rxc8 {[%clk 0:00:34]} 30... Rxc8 {[%clk
0:00:53.5]} 31. Re2 {[%clk 0:00:34.6]} 31... Be6 {[%clk 0:00:51.9]} 32. Rd2
{[%clk 0:00:34.3]} 32... Bf6 {[%clk 0:00:44.2]} 33. Nd4 {[%clk 0:00:33.1]} 33...
Rd8 {[%clk 0:00:39.4]} 34. Nf3 {[%clk 0:00:34.1]} 34... Rc8 {[%clk 0:00:38.5]}
35. Nd4 {[%clk 0:00:35.2]} 35... Rd8 {[%clk 0:00:27.2]} 36. Nf3 {[%clk 0:00:36]}
36... Rxd2 {[%clk 0:00:28.2]} 37. Nxd2 {[%clk 0:00:37.5]} 37... Bc3 {[%clk
0:00:25.3]} 38. Nc4 {[%clk 0:00:35.2]} 38... Bd4 {[%clk 0:00:20.4]} 39. f4
{[%clk 0:00:31.6]} 39... Bc8 {[%clk 0:00:16.8]} 40. fxg5 {[%clk 0:00:27.5]}
40... hxg5 {[%clk 0:00:17.4]} 41. g4 {[%clk 0:00:28.9]} 41... Bb7 {[%clk
0:00:14]} 42. Bd3 {[%clk 0:00:30]} 42... Kg7 {[%clk 0:00:12.7]} 43. Kf3 {[%clk
0:00:29.2]} 43... e6 {[%clk 0:00:11.6]} 44. Nd6 {[%clk 0:00:29.3]} 44... Bc6
{[%clk 0:00:09.5]} 45. Bb5 {[%clk 0:00:29.2]} 45... Ba8 {[%clk 0:00:09.5]} 46.
Ne8+ {[%clk 0:00:30.2]} 46... Kg6 {[%clk 0:00:08.8]} 47. Nc7 {[%clk 0:00:30.6]}
47... Bb7 {[%clk 0:00:08.6]} 48. Ba6 {[%clk 0:00:31.7]} 48... Bc6 {[%clk
0:00:09.2]} 49. Bb5 {[%clk 0:00:33]} 49... Bb7 {[%clk 0:00:09]} 50. Ba6 {[%clk
0:00:34.1]} 50... Bc6 {[%clk 0:00:09]} 51. Bb5 {[%clk 0:00:35.1]} 51... Bb7
{[%clk 0:00:07.2]} 52. Ba6 {[%clk 0:00:17.5]} 52... Bc6 {[%clk 0:00:06.1]} 53.
Bb5 {[%clk 0:00:17.1]} 53... Bxb5 {[%clk 0:00:07.1]} 54. Nxb5 {[%clk 0:00:18.2]}
54... Be5 {[%clk 0:00:08.5]} 55. Na3 {[%clk 0:00:19.5]} 55... Bc7 {[%clk
0:00:06.7]} 56. Nc4 {[%clk 0:00:20.8]} 56... Kf6 {[%clk 0:00:08.2]} 57. Ke3
{[%clk 0:00:21.7]} 57... Bf4+ {[%clk 0:00:09.2]} 58. Kd4 {[%clk 0:00:22.2]}
58... Bc7 {[%clk 0:00:09.5]} 59. e5+ {[%clk 0:00:23]} 59... Kg6 {[%clk
0:00:09.9]} 60. Ke4 {[%clk 0:00:24.2]} 60... Bb8 {[%clk 0:00:09]} 61. Nd2 {[%clk
0:00:23.9]} 61... Bc7 {[%clk 0:00:09.2]} 62. Nf3 {[%clk 0:00:25.3]} 62... Bb8
{[%clk 0:00:08.9]} 63. Nd4 {[%clk 0:00:26.2]} 63... Bc7 {[%clk 0:00:09.7]} 64.
Nc6 {[%clk 0:00:27.5]} 64... Bb6 {[%clk 0:00:08.7]} 65. Ne7+ {[%clk 0:00:28.2]}
65... Kg7 {[%clk 0:00:09.8]} 66. Nc6 {[%clk 0:00:27.1]} 66... Kg6 {[%clk
0:00:08.9]} 67. Nb4 {[%clk 0:00:24.6]} 67... Kg7 {[%clk 0:00:09.1]} 68. Nd3
{[%clk 0:00:24.7]} 68... Kg6 {[%clk 0:00:09.6]} 69. Ne1 {[%clk 0:00:25.5]} 69...
Kg7 {[%clk 0:00:10.2]} 70. Nf3 {[%clk 0:00:27.1]} 70... Kg6 {[%clk 0:00:10.4]}
71. Kd3 {[%clk 0:00:27]} 71... Bc7 {[%clk 0:00:09.1]} 72. Kd4 {[%clk 0:00:27.3]}
72... Bb6+ {[%clk 0:00:10.4]} 73. Kc4 {[%clk 0:00:28.6]} 73... Bf2 {[%clk
0:00:11.1]} 74. Kb5 {[%clk 0:00:27.4]} 74... Bg3 {[%clk 0:00:07.4]} 75. Kc6
{[%clk 0:00:27.1]} 75... Bf4 {[%clk 0:00:05.8]} 76. Kd6 {[%clk 0:00:21.7]} 76...
Bg3 {[%clk 0:00:06.7]} 77. Nd4 {[%clk 0:00:18.7]} 77... Bf4 {[%clk 0:00:06]} 78.
Nc6 {[%clk 0:00:15.4]} 78... Bg3 {[%clk 0:00:05.7]} 79. Ke7 {[%clk 0:00:16.7]}
79... Kg7 {[%clk 0:00:05.9]} 80. Nd8 {[%clk 0:00:17.7]} 80... Bxe5 {[%clk
0:00:02.3]} 81. Nxf7 {[%clk 0:00:19.1]} 81... Bf4 {[%clk 0:00:03.1]} 82. Kxe6
{[%clk 0:00:20.5]} 82... Kg6 {[%clk 0:00:04.3]} 83. Ne5+ {[%clk 0:00:21.3]}
83... Kg7 {[%clk 0:00:02.8]} 84. Kf5 {[%clk 0:00:21.9]} 84... Bc1 {[%clk
0:00:03.6]} 85. Nd3 {[%clk 0:00:18.9]} 85... Bd2 {[%clk 0:00:04]} 86. Nf2 {[%clk
0:00:19.2]} 86... Bc1 {[%clk 0:00:03.3]} 87. Ne4 {[%clk 0:00:21.1]} 87... Kh6
{[%clk 0:00:04.3]} 88. Kf6 {[%clk 0:00:22]} 88... Bb2+ {[%clk 0:00:04.7]} 89.
Kf7 {[%clk 0:00:23.2]} 89... Bc1 {[%clk 0:00:05.7]} 90. Nd6 {[%clk 0:00:24.4]}
90... Bd2 {[%clk 0:00:05.4]} 91. Nf5+ {[%clk 0:00:25.6]} 91... Kh7 {[%clk
0:00:06.9]} 92. Kf6 {[%clk 0:00:27.1]} 92... Bc1 {[%clk 0:00:07.6]} 93. Ng3
{[%clk 0:00:28]} 93... Kh6 {[%clk 0:00:07.2]} 94. Kf5 {[%clk 0:00:26.4]} 94...
Bf4 {[%clk 0:00:05.6]} 95. Nh5 {[%clk 0:00:26.9]} 95... Bc1 {[%clk 0:00:06.7]}
96. Nf6 {[%clk 0:00:27.1]} 96... Bd2 {[%clk 0:00:08.1]} 97. Ne4 {[%clk
0:00:13.1]} 97... Bc1 {[%clk 0:00:08.8]} 98. Kf6 {[%clk 0:00:13.8]} 98... Bb2+
{[%clk 0:00:09.2]} 99. Kf7 {[%clk 0:00:15.1]} 99... Bc1 {[%clk 0:00:10.4]} 100.
Ng3 {[%clk 0:00:16.1]} 100... Bd2 {[%clk 0:00:07.6]} 101. Nf5+ {[%clk 0:00:18]}
101... Kh7 {[%clk 0:00:08.1]} 102. Ke6 {[%clk 0:00:19.1]} 102... Kg6 {[%clk
0:00:07.7]} 103. Nd6 {[%clk 0:00:21]} 103... Bc1 {[%clk 0:00:08.1]} 104. Ne4
{[%clk 0:00:22.9]} 104... Be3 {[%clk 0:00:07.5]} 105. Nf6 {[%clk 0:00:24.2]}
105... Bc1 {[%clk 0:00:08.3]} 106. Nd5 {[%clk 0:00:26.1]} 106... Bd2 {[%clk
0:00:09.3]} 107. Ne7+ {[%clk 0:00:28]} 107... Kh6 {[%clk 0:00:10.3]} 108. Kf5
{[%clk 0:00:29.4]} 108... Bc1 {[%clk 0:00:10.7]} 109. Ng8+ {[%clk 0:00:30.7]}
109... Kg7 {[%clk 0:00:11.7]} 110. Nf6 {[%clk 0:00:32.6]} 110... Kh6 {[%clk
0:00:12.2]} 111. Ne4 {[%clk 0:00:34.1]} 111... Be3 {[%clk 0:00:12.2]} 112. Ke6
{[%clk 0:00:35]} 112... Kg6 {[%clk 0:00:12.8]} 113. Ng3 {[%clk 0:00:36.1]}
113... Bf4 {[%clk 0:00:13]} 114. Nf5 {[%clk 0:00:37.7]} 114... Bc1 {[%clk
0:00:14.2]} 115. Ke5 {[%clk 0:00:38.9]} 115... Bb2+ {[%clk 0:00:14.7]} 116. Ke4
{[%clk 0:00:40.8]} 116... Bc1 {[%clk 0:00:16.6]} 117. Nd4 {[%clk 0:00:41.2]}
117... Kf6 {[%clk 0:00:16.3]} 118. Nf3 {[%clk 0:00:43.1]} 118... Bb2 {[%clk
0:00:13.8]} 119. Kd5 {[%clk 0:00:45]} 119... Bc1 {[%clk 0:00:14.5]} 120. Ne5
{[%clk 0:00:45.7]} 120... Bd2 {[%clk 0:00:14.3]} 121. Nd7+ {[%clk 0:00:45.4]}
121... Kg6 {[%clk 0:00:15.4]} 122. Ke6 {[%clk 0:00:45.7]} 122... Bc1 {[%clk
0:00:15.6]} 123. Nf8+ {[%clk 0:00:46.7]} 123... Kg7 {[%clk 0:00:16.5]} 124. Nd7
{[%clk 0:00:47.8]} 124... Kg6 {[%clk 0:00:17.7]} 125. Ke7 {[%clk 0:00:47.3]}
125... Ba3+ {[%clk 0:00:17.7]} 126. Ke8 {[%clk 0:00:48.3]} 126... Bb4 {[%clk
0:00:18.6]} 127. Ne5+ {[%clk 0:00:48.8]} 127... Kf6 {[%clk 0:00:19.5]} 128. Nf3
{[%clk 0:00:50]} 128... Ba3 {[%clk 0:00:18.4]} 129. Kd7 {[%clk 0:00:45.8]} 1-0

[Event "*** Titled Tuesday Blitz"]
[Site "Chess.com"]
[Date "2019.01.01"]
[Round "8"]
[White "AnonymousBread"]
[Black "Viaje"]
[Result "1-0"]
[WhiteElo "2526"]
[BlackElo "2326"]
[TimeControl "180+2"]
[EndTime "14:49:38 PST"]
[Termination "AnonymousBread won by resignation"]

1. d4 {[%clk 0:03:01.9]} 1... Nf6 {[%clk 0:03:00.3]} 2. c4 {[%clk 0:03:01.3]}
2... c5 {[%clk 0:03:01.9]} 3. d5 {[%clk 0:03:02.4]} 3... b5 {[%clk 0:03:03.3]}
4. cxb5 {[%clk 0:03:02.6]} 4... a6 {[%clk 0:03:04.9]} 5. bxa6 {[%clk 0:03:03.3]}
5... g6 {[%clk 0:03:06.4]} 6. Nc3 {[%clk 0:03:04.9]} 6... Bg7 {[%clk 0:03:07.9]}
7. e4 {[%clk 0:03:06.6]} 7... O-O {[%clk 0:03:08.8]} 8. g3 {[%clk 0:03:08.2]}
8... Nxa6 {[%clk 0:03:08]} 9. Nf3 {[%clk 0:03:08.9]} 9... d6 {[%clk 0:03:05.5]}
10. Bg2 {[%clk 0:03:10]} 10... Qa5 {[%clk 0:03:02.5]} 11. O-O {[%clk 0:03:11.4]}
11... Nd7 {[%clk 0:03:02.3]} 12. Bd2 {[%clk 0:03:11]} 12... Nc7 {[%clk
0:02:59.4]} 13. Re1 {[%clk 0:03:10.6]} 13... Nb5 {[%clk 0:02:57.5]} 14. Qc2
{[%clk 0:03:08]} 14... Nd4 {[%clk 0:02:50]} 15. Nxd4 {[%clk 0:03:06.4]} 15...
Bxd4 {[%clk 0:02:51.9]} 16. Ne2 {[%clk 0:03:02.3]} 16... Qa4 {[%clk 0:02:52.6]}
17. Qxa4 {[%clk 0:03:01.2]} 17... Rxa4 {[%clk 0:02:54.5]} 18. Nxd4 {[%clk
0:03:02.8]} 18... cxd4 {[%clk 0:02:54.5]} 19. b3 {[%clk 0:03:04]} 19... Ra8
{[%clk 0:02:52.7]} 20. a4 {[%clk 0:03:05.5]} 20... Ba6 {[%clk 0:02:52.7]} 21. b4
{[%clk 0:03:00.1]} 21... Bc4 {[%clk 0:02:53.5]} 22. Rec1 {[%clk 0:02:50.1]}
22... Bb3 {[%clk 0:02:52]} 23. a5 {[%clk 0:02:49]} 23... Rfb8 {[%clk 0:02:52]}
24. Ra3 {[%clk 0:02:47.1]} 1-0

[Event "*** Titled Tuesday Blitz"]
[Site "Chess.com"]
[Date "2019.01.01"]
[Round "8"]
[White "TST2014"]
[Black "c63_amg"]
[Result "1-0"]
[WhiteElo "2510"]
[BlackElo "2666"]
[TimeControl "180+2"]
[EndTime "14:51:05 PST"]
[Termination "TST2014 won by resignation"]

1. d4 {[%clk 0:03:01.9]} 1... Nf6 {[%clk 0:03:00.6]} 2. c4 {[%clk 0:03:02]} 2...
e6 {[%clk 0:03:02.5]} 3. Nf3 {[%clk 0:03:02.7]} 3... Bb4+ {[%clk 0:03:03.7]} 4.
Nc3 {[%clk 0:03:02.5]} 4... b6 {[%clk 0:03:03.1]} 5. e3 {[%clk 0:03:03.3]} 5...
Bb7 {[%clk 0:03:04]} 6. Bd3 {[%clk 0:03:04.3]} 6... Ne4 {[%clk 0:03:01.7]} 7.
O-O {[%clk 0:03:03.1]} 7... Bxc3 {[%clk 0:02:53]} 8. bxc3 {[%clk 0:03:03.9]}
8... f5 {[%clk 0:02:54.6]} 9. Nd2 {[%clk 0:02:54.7]} 9... Qh4 {[%clk 0:02:50.6]}
10. f3 {[%clk 0:02:51.8]} 10... Ng5 {[%clk 0:02:50.5]} 11. Qe1 {[%clk
0:02:48.2]} 11... Qh5 {[%clk 0:02:49.7]} 12. Qg3 {[%clk 0:02:47.7]} 12... O-O
{[%clk 0:02:47]} 13. Qxc7 {[%clk 0:02:46.7]} 13... Bc6 {[%clk 0:02:44]} 14. Ba3
{[%clk 0:02:41.9]} 14... Re8 {[%clk 0:02:24.5]} 15. Qg3 {[%clk 0:02:30.6]} 15...
Nf7 {[%clk 0:02:16.8]} 16. e4 {[%clk 0:02:29]} 16... Qh6 {[%clk 0:02:13.1]} 17.
f4 {[%clk 0:02:21]} 17... fxe4 {[%clk 0:01:41]} 18. Nxe4 {[%clk 0:02:19.7]}
18... Qh5 {[%clk 0:01:27.4]} 19. Nf6+ {[%clk 0:02:19]} 1-0